fUSD/lending_fUSD_20260516
["ID","MTS","AMOUNT","RATE_DAILY","PERIOD"]
[422401487,1778935885000,-527.89629163,0.0003643,2]
[422401492,1778935885000,-300.0,0.0003643,2]
[422401489,1778935885000,-726.26438584,0.0003643,2]
[422401491,1778935885000,-300.0,0.0003643,2]
[422401494,1778935885000,-300.00000001,0.0003643,2]
[422401488,1778935885000,-893.62065607,0.0003643,2]
[422401490,1778935885000,-301.8794073,0.0003643,2]
[422401496,1778935885000,-949.2762563,0.0003643,2]
[422401498,1778935885000,-527.04605611,0.0003643,2]
[422401500,1778935885000,-1147.52562491,0.0003643,2]
[422401499,1778935885000,-344.06433587,0.0003643,2]
[422401507,1778935885000,-300.0,0.0003643,2]
[422401497,1778935885000,-300.0,0.0003643,2]
[422401486,1778935885000,-300.0,0.0003643,2]
[422401502,1778935885000,-864.66747955,0.0003643,2]
[422401514,1778935885000,-484.20422313,0.0003643,2]
[422401513,1778935885000,-300.0,0.0003643,2]
[422401511,1778935885000,-300.0,0.0003643,2]
[422401512,1778935885000,-300.0,0.0003643,2]
[422401501,1778935885000,-309.68315104,0.0003643,2]
[422401510,1778935885000,-300.0,0.0003643,2]
[422401519,1778935885000,-300.0,0.0003643,2]
[422401509,1778935885000,-452.04263183,0.0003643,2]
[422401508,1778935885000,-577.32664704,0.0003643,2]
[422401506,1778935885000,-463.96341871,0.0003643,2]
[422401505,1778935885000,-300.0,0.0003643,2]
[422401503,1778935885000,-475.37394342,0.0003643,2]
[422401504,1778935885000,-310.98128614,0.0003643,2]
[422401520,1778935885000,-300.0,0.0003643,2]
[422401591,1778935886000,-300.0,0.0003643,2]
[422401594,1778935886000,-484.20422311,0.0003643,2]
[422401592,1778935886000,-300.0,0.0003643,2]
[422401590,1778935886000,-452.04263183,0.0003643,2]
[422401589,1778935886000,-300.0,0.0003643,2]
[422401583,1778935886000,-864.66747955,0.0003643,2]
[422401586,1778935886000,-463.96341871,0.0003643,2]
[422401584,1778935886000,-310.98128614,0.0003643,2]
[422401585,1778935886000,-300.0,0.0003643,2]
[422401588,1778935886000,-577.32664704,0.0003643,2]
[422401578,1778935886000,-949.2762563,0.0003643,2]
[422401587,1778935886000,-300.0,0.0003643,2]
[422401593,1778935886000,-429.81925615,0.0003643,2]
[422401596,1778935886000,-325.7949521,0.0003643,2]
[422401602,1778935886000,-300.0,0.0003643,2]
[422401595,1778935886000,-309.90045864,0.0003643,2]
[422401597,1778935886000,-361.47213421,0.0003643,2]
[422401598,1778935886000,-567.85547516,0.0003643,2]
[422401599,1778935886000,-300.0,0.0003643,2]
[422401600,1778935886000,-1094.99361782,0.0003643,2]
[422401604,1778935886000,-604.63991303,0.0003643,2]
[422401614,1778935886000,-300.0,0.0003643,2]
[422401606,1778935886000,-527.89629163,0.0003643,2]
[422401607,1778935886000,-1067.17753306,0.0003643,2]
[422401610,1778935886000,-301.8794073,0.0003643,2]
[422401577,1778935886000,-300.0,0.0003643,2]
[422401605,1778935886000,-300.0,0.0003643,2]
[422401601,1778935886000,-300.0,0.0003643,2]
[422401579,1778935886000,-1912.98732614,0.0003643,2]
[422401560,1778935886000,-300.0,0.0003643,2]
[422401574,1778935886000,-300.0,0.0003643,2]
[422401603,1778935886000,-492.84022017,0.0003643,2]
[422401555,1778935886000,-484.20422313,0.0003643,2]
[422401552,1778935886000,-300.0,0.0003643,2]
[422401550,1778935886000,-452.04263183,0.0003643,2]
[422401553,1778935886000,-300.0,0.0003643,2]
[422401551,1778935886000,-300.0,0.0003643,2]
[422401554,1778935886000,-300.0,0.0003643,2]
[422401557,1778935886000,-300.62593298,0.0003643,2]
[422401565,1778935886000,-492.84022017,0.0003643,2]
[422401559,1778935886000,-1127.79186826,0.0003643,2]
[422401558,1778935886000,-300.0,0.0003643,2]
[422401567,1778935886000,-300.0,0.0003643,2]
[422401561,1778935886000,-300.0,0.0003643,2]
[422401566,1778935886000,-604.63991303,0.0003643,2]
[422401562,1778935886000,-1094.99361782,0.0003643,2]
[422401568,1778935886000,-527.89629163,0.0003643,2]
[422401564,1778935886000,-300.00000001,0.0003643,2]
[422401563,1778935886000,-300.0,0.0003643,2]
[422401570,1778935886000,-1067.17753308,0.0003643,2]
[422401581,1778935886000,-1147.2080765,0.0003643,2]
[422401580,1778935886000,-527.04605611,0.0003643,2]
[422401582,1778935886000,-309.68315104,0.0003643,2]
[422401569,1778935886000,-893.62065608,0.0003643,2]
[422401573,1778935886000,-301.8794073,0.0003643,2]
[422401571,1778935886000,-726.26438584,0.0003643,2]
[422401575,1778935886000,-300.64571324,0.0003643,2]
[422401572,1778935886000,-435.12502189,0.0003643,2]
[422401576,1778935886000,-300.0,0.0003643,2]
[422401608,1778935886000,-893.62065606,0.0003643,2]
[422401556,1778935886000,-309.90045866,0.0003643,2]
[422401612,1778935886000,-300.64571324,0.0003643,2]
[422401645,1778935886000,-300.0,0.0003643,2]
[422401650,1778935886000,-1912.98732614,0.0003643,2]
[422401643,1778935886000,-726.26438584,0.0003643,2]
[422401648,1778935886000,-300.0,0.0003643,2]
[422401642,1778935886000,-893.62065606,0.0003643,2]
[422401646,1778935886000,-300.64571324,0.0003643,2]
[422401647,1778935886000,-306.67552145,0.0003643,2]
[422401649,1778935886000,-949.2762563,0.0003643,2]
[422401654,1778935886000,-309.68315104,0.0003643,2]
[422401664,1778935886000,-300.0,0.0003643,2]
[422401656,1778935886000,-310.98128614,0.0003643,2]
[422401653,1778935886000,-1147.39860555,0.0003643,2]
[422401666,1778935886000,-309.90045866,0.0003643,2]
[422401644,1778935886000,-301.8794073,0.0003643,2]
[422401655,1778935886000,-864.66747955,0.0003643,2]
[422401659,1778935886000,-300.00000001,0.0003643,2]
[422401658,1778935886000,-463.96341871,0.0003643,2]
[422401663,1778935886000,-300.0,0.0003643,2]
[422401668,1778935886000,-1094.99361782,0.0003643,2]
[422401662,1778935886000,-300.0,0.0003643,2]
[422401661,1778935886000,-452.04263183,0.0003643,2]
[422401660,1778935886000,-577.32664704,0.0003643,2]
[422401670,1778935886000,-300.0,0.0003643,2]
[422401671,1778935886000,-492.84022017,0.0003643,2]
[422401667,1778935886000,-300.0,0.0003643,2]
[422401669,1778935886000,-300.0,0.0003643,2]
[422401672,1778935886000,-604.63991303,0.0003643,2]
[422401609,1778935886000,-726.26438584,0.0003643,2]
[422401657,1778935886000,-300.0,0.0003643,2]
[422401651,1778935886000,-527.04605611,0.0003643,2]
[422401665,1778935886000,-484.20422311,0.0003643,2]
[422401640,1778935886000,-527.89629163,0.0003643,2]
[422401611,1778935886000,-300.0,0.0003643,2]
[422401641,1778935886000,-1067.17753308,0.0003643,2]
[422401613,1778935886000,-300.0,0.0003643,2]
[422401615,1778935886000,-949.2762563,0.0003643,2]
[422401618,1778935886000,-527.04605611,0.0003643,2]
[422401626,1778935886000,-577.32664704,0.0003643,2]
[422401617,1778935886000,-344.06433592,0.0003643,2]
[422401622,1778935886000,-310.98128614,0.0003643,2]
[422401621,1778935886000,-864.66747955,0.0003643,2]
[422401624,1778935886000,-463.96341869,0.0003643,2]
[422401619,1778935886000,-1147.52562491,0.0003643,2]
[422401616,1778935886000,-1912.98732614,0.0003643,2]
[422401625,1778935886000,-300.0,0.0003643,2]
[422401623,1778935886000,-300.0,0.0003643,2]
[422401620,1778935886000,-309.68315104,0.0003643,2]
[422401639,1778935886000,-300.0,0.0003643,2]
[422401652,1778935886000,-344.06433592,0.0003643,2]
[422401638,1778935886000,-604.63991303,0.0003643,2]
[422401635,1778935886000,-300.0,0.0003643,2]
[422401637,1778935886000,-492.84022017,0.0003643,2]
[422401632,1778935886000,-309.90045864,0.0003643,2]
[422401627,1778935886000,-452.04263183,0.0003643,2]
[422401633,1778935886000,-300.0,0.0003643,2]
[422401636,1778935886000,-300.0,0.0003643,2]
[422401629,1778935886000,-300.0,0.0003643,2]
[422401634,1778935886000,-1094.99361782,0.0003643,2]
[422401630,1778935886000,-300.0,0.0003643,2]
[422401628,1778935886000,-300.0,0.0003643,2]
[422401631,1778935886000,-484.20422313,0.0003643,2]
[422401713,1778935887000,-344.06433592,0.0003643,2]
[422401710,1778935887000,-300.0,0.0003643,2]
[422401714,1778935887000,-527.04605611,0.0003643,2]
[422401711,1778935887000,-949.37352276,0.0003643,2]
[422401712,1778935887000,-1911.39878961,0.0003643,2]
[422401715,1778935887000,-1149.51559507,0.0003643,2]
[422401705,1778935887000,-300.0,0.0003643,2]
[422401708,1778935887000,-726.26438584,0.0003643,2]
[422401716,1778935887000,-309.42605987,0.0003643,2]
[422401707,1778935887000,-1067.17753308,0.0003643,2]
[422401718,1778935887000,-300.0,0.0003643,2]
[422401709,1778935887000,-301.59612542,0.0003643,2]
[422401717,1778935887000,-310.98128614,0.0003643,2]
[422401719,1778935887000,-452.04263183,0.0003643,2]
[422401743,1778935887000,-300.0,0.0003643,2]
[422401722,1778935887000,-300.0,0.0003643,2]
[422401720,1778935887000,-300.0,0.0003643,2]
[422401721,1778935887000,-300.0,0.0003643,2]
[422401723,1778935887000,-492.84022017,0.0003643,2]
[422401731,1778935887000,-527.04605611,0.0003643,2]
[422401727,1778935887000,-1069.14124817,0.0003643,2]
[422401729,1778935887000,-300.0,0.0003643,2]
[422401724,1778935887000,-604.63991303,0.0003643,2]
[422401725,1778935887000,-300.0,0.0003643,2]
[422401728,1778935887000,-725.54276421,0.0003643,2]
[422401726,1778935887000,-527.89629163,0.0003643,2]
[422401733,1778935887000,-452.04263183,0.0003643,2]
[422401706,1778935887000,-527.89629163,0.0003643,2]
[422401730,1778935887000,-344.06433579,0.0003643,2]
[422401703,1778935887000,-492.84022017,0.0003643,2]
[422401679,1778935887000,-300.0,0.0003643,2]
[422401704,1778935887000,-604.63991303,0.0003643,2]
[422401732,1778935887000,-300.0,0.0003643,2]
[422401680,1778935887000,-300.64571324,0.0003643,2]
[422401678,1778935887000,-301.8794073,0.0003643,2]
[422401673,1778935887000,-300.0,0.0003643,2]
[422401674,1778935887000,-527.89629163,0.0003643,2]
[422401676,1778935887000,-893.62065606,0.0003643,2]
[422401675,1778935887000,-1067.17753306,0.0003643,2]
[422401682,1778935887000,-949.2762563,0.0003643,2]
[422401692,1778935887000,-300.00000001,0.0003643,2]
[422401684,1778935887000,-344.06433592,0.0003643,2]
[422401686,1778935887000,-1147.52562491,0.0003643,2]
[422401683,1778935887000,-1912.98732614,0.0003643,2]
[422401690,1778935887000,-300.0,0.0003643,2]
[422401699,1778935887000,-309.90045866,0.0003643,2]
[422401688,1778935887000,-864.66747955,0.0003643,2]
[422401681,1778935887000,-484.9961675,0.0003643,2]
[422401687,1778935887000,-309.68315104,0.0003643,2]
[422401689,1778935887000,-310.98128614,0.0003643,2]
[422401691,1778935887000,-463.96341869,0.0003643,2]
[422401693,1778935887000,-577.32664705,0.0003643,2]
[422401695,1778935887000,-300.0,0.0003643,2]
[422401696,1778935887000,-300.0,0.0003643,2]
[422401700,1778935887000,-300.0,0.0003643,2]
[422401702,1778935887000,-300.0,0.0003643,2]
[422401697,1778935887000,-300.0,0.0003643,2]
[422401701,1778935887000,-300.0,0.0003643,2]
[422401698,1778935887000,-484.20422311,0.0003643,2]
[422401694,1778935887000,-452.04263183,0.0003643,2]
[422401685,1778935887000,-527.04605611,0.0003643,2]
[422401744,1778935887000,-452.04263183,0.0003643,2]
[422401677,1778935887000,-726.26438584,0.0003643,2]
[422401736,1778935887000,-300.0,0.0003643,2]
[422401771,1778935887000,-301.8794073,0.0003643,2]
[422401774,1778935887000,-1915.75255643,0.0003643,2]
[422401773,1778935887000,-949.22762308,0.0003643,2]
[422401782,1778935887000,-484.23291958,0.0003643,2]
[422401775,1778935887000,-344.08088588,0.0003643,2]
[422401772,1778935887000,-300.66230964,0.0003643,2]
[422401779,1778935887000,-310.99730567,0.0003643,2]
[422401777,1778935887000,-310.22018594,0.0003643,2]
[422401781,1778935887000,-452.04263183,0.0003643,2]
[422401776,1778935887000,-527.01885803,0.0003643,2]
[422401780,1778935887000,-463.96341872,0.0003643,2]
[422401778,1778935887000,-864.71533708,0.0003643,2]
[422401794,1778935887000,-311.48323152,0.0003643,2]
[422401763,1778935887000,-309.68315104,0.0003643,2]
[422401783,1778935887000,-309.92123961,0.0003643,2]
[422401785,1778935887000,-604.63991303,0.0003643,2]
[422401786,1778935887000,-1067.23644452,0.0003643,2]
[422401790,1778935887000,-527.01885803,0.0003643,2]
[422401793,1778935887000,-864.71533708,0.0003643,2]
[422401791,1778935887000,-1147.46211523,0.0003643,2]
[422401787,1778935887000,-301.8794073,0.0003643,2]
[422401792,1778935887000,-310.22018594,0.0003643,2]
[422401789,1778935887000,-344.08088588,0.0003643,2]
[422401795,1778935887000,-463.96341868,0.0003643,2]
[422401797,1778935887000,-300.37947995,0.0003643,2]
[422401798,1778935887000,-484.23291958,0.0003643,2]
[422401796,1778935887000,-452.04263183,0.0003643,2]
[422401735,1778935887000,-300.0,0.0003643,2]
[422401788,1778935887000,-949.22762309,0.0003643,2]
[422401768,1778935887000,-1094.99361782,0.0003643,2]
[422401784,1778935887000,-469.60141373,0.0003643,2]
[422401764,1778935887000,-310.99730567,0.0003643,2]
[422401741,1778935887000,-300.36864086,0.0003643,2]
[422401761,1778935887000,-949.22762306,0.0003643,2]
[422401734,1778935887000,-538.78870161,0.0003643,2]
[422401740,1778935887000,-527.89629163,0.0003643,2]
[422401737,1778935887000,-492.30807598,0.0003643,2]
[422401742,1778935887000,-526.58368875,0.0003643,2]
[422401738,1778935887000,-604.25992953,0.0003643,2]
[422401739,1778935887000,-300.62854286,0.0003643,2]
[422401746,1778935887000,-300.67635917,0.0003643,2]
[422401745,1778935887000,-300.0,0.0003643,2]
[422401757,1778935887000,-1097.58511494,0.0003643,2]
[422401758,1778935887000,-726.22429574,0.0003643,2]
[422401747,1778935887000,-300.51517177,0.0003643,2]
[422401749,1778935887000,-300.59304462,0.0003643,2]
[422401754,1778935887000,-527.92546095,0.0003643,2]
[422401756,1778935887000,-452.04263183,0.0003643,2]
[422401766,1778935887000,-452.04263183,0.0003643,2]
[422401753,1778935887000,-950.84873049,0.0003643,2]
[422401767,1778935887000,-309.92123961,0.0003643,2]
[422401769,1778935887000,-893.62065606,0.0003643,2]
[422401765,1778935887000,-463.96341869,0.0003643,2]
[422401770,1778935887000,-1067.23644452,0.0003643,2]
[422401760,1778935887000,-300.66230963,0.0003643,2]
[422401759,1778935887000,-300.0,0.0003643,2]
[422401751,1778935887000,-727.56063212,0.0003643,2]
[422401755,1778935887000,-464.76009371,0.0003643,2]
[422401748,1778935887000,-452.04263183,0.0003643,2]
[422401752,1778935887000,-300.0,0.0003643,2]
[422401750,1778935887000,-895.26500833,0.0003643,2]
[422401762,1778935887000,-1912.98732613,0.0003643,2]
[422401844,1778935888000,-300.0,0.0003643,2]
[422401838,1778935888000,-463.96341872,0.0003643,2]
[422401843,1778935888000,-646.67758699,0.0003643,2]
[422401839,1778935888000,-300.34451433,0.0003643,2]
[422401841,1778935888000,-514.35198232,0.0003643,2]
[422401834,1778935888000,-443.25832562,0.0003643,2]
[422401832,1778935888000,-837.57899849,0.0003643,2]
[422401836,1778935888000,-864.71533708,0.0003643,2]
[422401846,1778935888000,-365.68849179,0.0003643,2]
[422401845,1778935888000,-300.0,0.0003643,2]
[422401835,1778935888000,-382.75682152,0.0003643,2]
[422401837,1778935888000,-300.41955908,0.0003643,2]
[422401840,1778935888000,-574.33693746,0.0003643,2]
[422401842,1778935888000,-300.0,0.0003643,2]
[422401871,1778935888000,-1912.8990741,0.0003643,2]
[422401850,1778935888000,-807.56283172,0.0003643,2]
[422401852,1778935888000,-1066.94188728,0.0003643,2]
[422401848,1778935888000,-404.85871492,0.0003643,2]
[422401849,1778935888000,-492.84022017,0.0003643,2]
[422401855,1778935888000,-344.54980208,0.0003643,2]
[422401858,1778935888000,-300.0,0.0003643,2]
[422401857,1778935888000,-618.7231669,0.0003643,2]
[422401854,1778935888000,-300.41443746,0.0003643,2]
[422401853,1778935888000,-1191.9139044,0.0003643,2]
[422401851,1778935888000,-527.89629163,0.0003643,2]
[422401856,1778935888000,-1154.49582583,0.0003643,2]
[422401860,1778935888000,-300.0,0.0003643,2]
[422401831,1778935888000,-300.43213513,0.0003643,2]
[422401847,1778935888000,-300.53268244,0.0003643,2]
[422401833,1778935888000,-344.08088588,0.0003643,2]
[422401799,1778935888000,-309.92123961,0.0003643,2]
[422401826,1778935888000,-300.59313938,0.0003643,2]
[422401804,1778935888000,-604.63991303,0.0003643,2]
[422401870,1778935888000,-300.26109706,0.0003643,2]
[422401800,1778935888000,-300.0,0.0003643,2]
[422401803,1778935888000,-300.49118031,0.0003643,2]
[422401805,1778935888000,-300.41189661,0.0003643,2]
[422401807,1778935888000,-403.14240168,0.0003643,2]
[422401806,1778935888000,-1067.23644452,0.0003643,2]
[422401801,1778935888000,-300.42502171,0.0003643,2]
[422401802,1778935888000,-351.49717255,0.0003643,2]
[422401808,1778935888000,-301.16573364,0.0003643,2]
[422401820,1778935888000,-484.23291958,0.0003643,2]
[422401810,1778935888000,-344.08088588,0.0003643,2]
[422401818,1778935888000,-300.0,0.0003643,2]
[422401817,1778935888000,-452.04263183,0.0003643,2]
[422401828,1778935888000,-527.89629163,0.0003643,2]
[422401815,1778935888000,-463.96341872,0.0003643,2]
[422401814,1778935888000,-311.48323152,0.0003643,2]
[422401821,1778935888000,-310.53081456,0.0003643,2]
[422401819,1778935888000,-300.45791765,0.0003643,2]
[422401813,1778935888000,-864.71533708,0.0003643,2]
[422401822,1778935888000,-300.63708072,0.0003643,2]
[422401809,1778935888000,-949.22762306,0.0003643,2]
[422401811,1778935888000,-527.01885803,0.0003643,2]
[422401816,1778935888000,-300.0,0.0003643,2]
[422401823,1778935888000,-300.0,0.0003643,2]
[422401824,1778935888000,-300.49005029,0.0003643,2]
[422401825,1778935888000,-492.84022017,0.0003643,2]
[422401827,1778935888000,-604.63991303,0.0003643,2]
[422401830,1778935888000,-1067.23644452,0.0003643,2]
[422401829,1778935888000,-300.47044331,0.0003643,2]
[422401812,1778935888000,-1147.46211523,0.0003643,2]
[422401859,1778935888000,-300.0,0.0003643,2]
[422401866,1778935888000,-527.89629163,0.0003643,2]
[422401861,1778935888000,-429.50998764,0.0003643,2]
[422401899,1778935888000,-601.21,0.00036838,2]
[422401901,1778935888000,-157.78723388,0.00036878,2]
[422401904,1778935888000,-250.0,0.00036889,7]
[422401910,1778935888000,-4844.30013191,0.00037,10]
[422401902,1778935888000,-1285.4486,0.00036886,2]
[422401903,1778935888000,-7573.0469,0.00036886,2]
[422401908,1778935888000,-488.42,0.00036942,30]
[422401909,1778935888000,-400.0,0.0003697,2]
[422401906,1778935888000,-338.34,0.00036895,7]
[422401905,1778935888000,-250.0,0.00036889,7]
[422401907,1778935888000,-167.1,0.000369,120]
[422401900,1778935888000,-200.4,0.00036838,2]
[422401912,1778935888000,-300.0,0.00037,30]
[422401911,1778935888000,-150.0,0.00037,2]
[422401914,1778935888000,-7975.95,0.00037,15]
[422401924,1778935888000,-162.0,0.00037104,3]
[422401925,1778935888000,-157.78723388,0.00037152,2]
[422401913,1778935888000,-150.0,0.00037,2]
[422401916,1778935888000,-7283.01,0.00037,14]
[422401915,1778935888000,-158.0,0.00037,120]
[422401862,1778935888000,-468.29856167,0.0003643,2]
[422401920,1778935888000,-73892.38682681,0.000371,2]
[422401919,1778935888000,-5800.0,0.00037078,2]
[422401918,1778935888000,-500.0,0.00037068,38]
[422401922,1778935888000,-1296.58145655,0.000371,120]
[422401921,1778935888000,-1799.22046513,0.000371,120]
[422401923,1778935888000,-1256.55167276,0.000371,120]
[422401926,1778935888000,-488.42,0.00037154,30]
[422401927,1778935888000,-235.44256182,0.0003716,2]
[422401891,1778935888000,-488.42,0.00036518,30]
[422401892,1778935888000,-302.0,0.00036588,120]
[422401917,1778935888000,-7573.0469,0.00037017,2]
[422401895,1778935888000,-150.0,0.00036715,2]
[422401893,1778935888000,-1378.20891596,0.00036689,7]
[422401864,1778935888000,-316.38872428,0.0003643,2]
[422401868,1778935888000,-300.34368571,0.0003643,2]
[422401863,1778935888000,-492.84022017,0.0003643,2]
[422401865,1778935888000,-300.41157969,0.0003643,2]
[422401869,1778935888000,-300.53247411,0.0003643,2]
[422401872,1778935888000,-300.34195825,0.0003643,2]
[422401874,1778935888000,-300.0,0.0003643,2]
[422401876,1778935888000,-300.57749917,0.0003643,2]
[422401875,1778935888000,-495.65426647,0.0003643,2]
[422401877,1778935888000,-478.02559862,0.0003643,2]
[422401879,1778935888000,-301.86274365,0.0003643,2]
[422401878,1778935888000,-527.89629163,0.0003643,2]
[422401873,1778935888000,-300.0,0.0003643,2]
[422401867,1778935888000,-356.22737693,0.0003643,2]
[422401881,1778935888000,-1912.8990741,0.0003643,2]
[422401889,1778935888000,-340.0,0.00036494,30]
[422401880,1778935888000,-300.38197476,0.0003643,2]
[422401894,1778935888000,-287.9,0.0003669,30]
[422401888,1778935888000,-1918.0,0.00036494,30]
[422401887,1778935888000,-594.0,0.00036494,30]
[422401885,1778935888000,-1314.0,0.00036494,30]
[422401890,1778935888000,-10000.0,0.000365,10]
[422401897,1778935888000,-831.0,0.00036748,12]
[422401896,1778935888000,-488.42,0.0003673,30]
[422401886,1778935888000,-1043.0,0.00036494,30]
[422401883,1778935888000,-249.0,0.00036488,30]
[422401882,1778935888000,-1044.0,0.00036488,30]
[422401884,1778935888000,-2501.0,0.00036494,30]
[422401898,1778935888000,-6652.05,0.00036787,30]
[422401954,1778935889000,-100380.0,0.000376,30]
[422401959,1778935889000,-287.9,0.0003766,82]
[422401955,1778935889000,-1000.0,0.00037615,2]
[422401957,1778935889000,-400.0,0.00037615,2]
[422401972,1778935889000,-1372.19625003,0.00037806,7]
[422401958,1778935889000,-715.79671433,0.00037615,2]
[422401956,1778935889000,-1000.0,0.00037615,2]
[422401961,1778935889000,-150.0,0.00037694,2]
[422401960,1778935889000,-236.52117407,0.00037671,30]
[422401964,1778935889000,-275.0,0.00037796,120]
[422401962,1778935889000,-157.78723388,0.000377,2]
[422401967,1778935889000,-1418.4000189,0.00037806,7]
[422401968,1778935889000,-1349.15199682,0.00037806,7]
[422401965,1778935889000,-150.0,0.000378,120]
[422401966,1778935889000,-216.0,0.000378,120]
[422401969,1778935889000,-1321.21077445,0.00037806,7]
[422401963,1778935889000,-306.90378942,0.00037753,120]
[422401970,1778935889000,-1652.02960542,0.00037806,7]
[422401952,1778935889000,-488.5,0.00037577,30]
[422401951,1778935889000,-353.16384272,0.0003751,7]
[422401953,1778935889000,-4410.6290143,0.0003759,2]
[422401933,1778935889000,-160.0,0.000372,36]
[422401947,1778935889000,-381.55012375,0.00037432,2]
[422401928,1778935889000,-287.9,0.0003717,60]
[422401937,1778935889000,-298.03676715,0.000372,120]
[422401929,1778935889000,-160.0,0.000372,36]
[422401932,1778935889000,-160.0,0.000372,36]
[422401931,1778935889000,-160.0,0.000372,36]
[422401930,1778935889000,-160.0,0.000372,36]
[422401936,1778935889000,-298.03676715,0.000372,120]
[422401934,1778935889000,-298.03676716,0.000372,120]
[422401935,1778935889000,-298.03676715,0.000372,120]
[422401950,1778935889000,-600.0,0.000375,120]
[422401939,1778935889000,-346.0,0.0003726,120]
[422401938,1778935889000,-298.03676715,0.000372,120]
[422401941,1778935889000,-601.21,0.00037338,2]
[422401940,1778935889000,-831.0,0.00037282,13]
[422401946,1778935889000,-449.71,0.00037432,30]
[422401948,1778935889000,-1043.42265129,0.00037432,2]
[422401945,1778935889000,-157.78723388,0.00037426,2]
[422401944,1778935889000,-5059.28286045,0.00037417,10]
[422401942,1778935889000,-200.4,0.00037338,2]
[422401943,1778935889000,-488.42,0.00037365,30]
[422401949,1778935889000,-1000.0,0.000375,2]
[422401971,1778935889000,-1252.23332332,0.00037806,7]
[422401995,1778935889000,-157.78723388,0.00037974,2]
[422401974,1778935889000,-1213.34019819,0.00037806,7]
[422402000,1778935889000,-1559.59831561,0.00038,2]
[422402001,1778935889000,-152.0,0.00038,120]
[422402002,1778935889000,-211.0,0.00038,120]
[422402006,1778935889000,-250.0,0.00038,7]
[422402004,1778935889000,-847.30616585,0.00038,120]
[422402003,1778935889000,-250.0,0.00038,120]
[422402007,1778935889000,-522.0,0.00038,120]
[422402005,1778935889000,-700.0,0.00038,120]
[422402009,1778935889000,-220.41134697,0.00038003,120]
[422401999,1778935889000,-238588.4337048,0.00038,2]
[422402010,1778935889000,-175.03,0.00038014,120]
[422402011,1778935889000,-330.0,0.00038088,48]
[422402013,1778935889000,-2754.1,0.00038125,30]
[422402016,1778935889000,-160.0,0.000382,40]
[422402014,1778935889000,-287.9,0.0003814,98]
[422402015,1778935889000,-500.0,0.0003818,44]
[422402017,1778935889000,-160.0,0.000382,40]
[422402012,1778935889000,-529.45218585,0.000381,33]
[422402018,1778935889000,-160.0,0.000382,40]
[422401973,1778935889000,-1631.21532968,0.00037806,2]
[422402019,1778935889000,-160.0,0.000382,40]
[422401997,1778935889000,-599.3,0.00038,5]
[422402008,1778935889000,-850.0,0.00038,2]
[422401993,1778935889000,-1600.0,0.000379,13]
[422401998,1778935889000,-874.155,0.00038,120]
[422401984,1778935889000,-1285.4486,0.00037808,2]
[422401975,1778935889000,-1277.19340785,0.00037806,7]
[422401976,1778935889000,-1350.85822877,0.00037806,7]
[422401979,1778935889000,-2505.87403223,0.00037806,7]
[422401980,1778935889000,-3969.77948587,0.00037806,7]
[422401981,1778935889000,-1717.89806964,0.00037806,7]
[422401978,1778935889000,-1658.69390295,0.00037806,7]
[422401983,1778935889000,-2229.61769542,0.00037806,7]
[422401982,1778935889000,-3981.44130301,0.00037806,7]
[422401977,1778935889000,-3197.92907288,0.00037806,7]
[422401986,1778935889000,-831.0,0.00037816,13]
[422401994,1778935889000,-202.56,0.000379,120]
[422401985,1778935889000,-202.55,0.00037808,60]
[422401992,1778935889000,-167.1,0.000379,120]
[422401990,1778935889000,-205.67130326,0.0003788,2]
[422401996,1778935889000,-1000.0,0.00038,2]
[422401991,1778935889000,-864.17991631,0.000379,120]
[422401987,1778935889000,-6040.0,0.00037834,2]
[422401988,1778935889000,-202.55,0.00037839,80]
[422401989,1778935889000,-202.55,0.00037869,100]
[422402058,1778935890000,-500.0,0.00038356,2]